{"text_format":"1","workbook":"xlsx","n_sheets":1,"sheets":["Liste nouv. norme CNESST"],"not_rendered":{"charts":0,"images":0,"macros":0,"external_links":0,"defined_names":1,"comments":0,"pivot_tables":0},"unopened":[],"bounds":{"document_bytes":16777216,"sheet_cells":100000,"rows_first":2000,"rows_last":500,"rows_between":2000,"halvings":0,"cell_chars":16384,"cell_head_chars":4096},"cells_cut":0,"cells_raw":0,"read":"whole","date_system":"1900"}

{"sheet":"Liste nouv. norme CNESST","index":0,"n_rows":78,"n_cols":9,"rows_kept":78,"cut":false,"hidden":false,"merged":[[0,1,0,8],[73,6,73,7],[57,1,57,6],[3,6,4,8],[3,1,4,5],[31,1,32,5],[68,5,68,7],[69,5,69,7],[68,2,68,4],[69,2,69,4],[73,1,73,4],[31,6,32,8],[43,0,45,0],[17,1,17,5],[44,1,44,5],[16,0,18,0],[75,1,75,4]]}
[null,"TROUSSE DE PREMIERS SOINS - SELON LA NOUVELLE NORME CNESST"]
[null,null,null,null,null,null,"Prix à l'unité","Vos besoins","Montant"]
[null,"Trousse de secteur (grosse trousse)",null,null,null,null,52.54,null,{"$f":"SUM(G3*H3)","v":0}]
[null,"qui contient :",null,null,null,null,"si vous avez besoin de remplacer certains articles les prix à l'unité sont :"]
[]
[]
[null,1,"Coffre",null,null,null,10.5,null,{"$f":"SUM(G7*H7)","v":0}]
[null,4,"Bandes triangulaires",null,null,null,0.93,null,0]
[null,1,"Ciseau à bandage",null,null,null,1.59,null,0]
[null,2,"Comp. abdominales 5\" X 9\"",null,null,null,0.55000000000000004,null,0]
[null,24,"Comp. gaze ST 3 X 3 (4 plis) (2/env)",null,null,null,0.18,null,0]
[null,1,"Couverture secours aluminium",null,null,null,1.57,null,0]
[null,12,"Lingettes nettoyantes paws (sani-hands)",null,null,null,0.16,null,0]
[null,1,"Liste du contenu",null,null,null,0,null,0]
[null,1,"Masque de poche (valve et filtre inclus)",null,null,null,2.25,null,0]
[null,12,"Onguent antibiotique bac. Zinc USP 0.9 GR",null,null,null,0.28999999999999998,null,0]
[null,8,"Paires de gants d'examen (sans latex, sans poudre)",null,null,null,0.64,null,0]
[null,"ou"]
[null,8,"Paires de gants en latex",null,null,null,0.36,null,{"$f":"SUM(G19*H19)","v":0}]
[null,26,"Diachylons 1 X 3",null,null,null,7.0000000000000007E-2,null,0]
[null,8,"Diachylons bouts de doigt ",null,null,null,0.15,null,0]
[null,8,"Diachylons jointure",null,null,null,0.14000000000000001,null,0]
[null,8,"Diachylons genou",null,null,null,0.2,null,0]
[null,4,"Pansements compressifs 4\" X 4\"",null,null,null,1.28,null,0]
[null,1,"Pince à écharde",null,null,null,1.41,null,0]
[null,2,"Rouleaux de gaze 3\"",null,null,null,0.88,null,0]
[null,2,"Rouleaux de gaze 2\"",null,null,null,0.83,null,0]
[null,1,"Ruban adhésif (rouleau diachylon)",null,null,null,1.78,null,0]
[null,2,"Sac de déchets médicaux",null,null,null,0.18,null,0]
[null,50,"Tampons désinfectants",null,null,null,0.08,null,0]
[null,"Trousse personnelle (petite trousse)",null,null,null,null,34.25,null,0]
[null,"qui contient:",null,null,null,null,"si vous avez besoin de remplacer certains articles les prix à l'unité sont :"]
[]
[null,1,"Coffre",null,null,null,5.95,null,{"$f":"SUM(G34*H34)","v":0}]
[null,2,"Bandes triangulaires",null,null,null,0.93,null,0]
[null,1,"Ciseau à bandage",null,null,null,1.59,null,0]
[null,1,"Comp. abdominales 5\" X 9\"",null,null,null,0.55000000000000004,null,0]
[null,12,"Comp. gaze ST 3 X 3 (4 plis) (2/env)",null,null,null,0.18,null,0]
[null,1,"Couverture secours aluminium",null,null,null,1.57,null,0]
[null,6,"Lingettes nettoyantes paws (sani-hands)",null,null,null,0.16,null,0]
[null,1,"Liste du contenu (impression de la liste)",null,null,null,0,null,0]
[null,1,"Masque de poche (valve et filtre inclus)",null,null,null,2.25,null,0]
[null,6,"Onguent antibiotique bac. Zinc USP 0.9 GR",null,null,null,0.28999999999999998,null,0]
["OU",4,"Paires de gants d'examen (sans latex, sans poudre)",null,null,null,0.64,null,0]
[null,"ou"]
[null,4,"Paires de gants en latex",null,null,null,0.36,null,{"$f":"SUM(G46*H46)","v":0}]
[null,13,"Diachylons 1 X 3",null,null,null,7.0000000000000007E-2,null,0]
[null,4,"Diachylons bouts de doigt ",null,null,null,0.15,null,0]
[null,4,"Diachylons jointure",null,null,null,0.14000000000000001,null,0]
[null,4,"Diachylons genou",null,null,null,0.2,null,0]
[null,2,"Pansements compressifs 4\" X 4\"",null,null,null,1.28,null,0]
[null,1,"Pince à écharde",null,null,null,1.41,null,0]
[null,1,"Roul.gaze 3\"",null,null,null,0.88,null,0]
[null,1,"Rouleau de gaze 2\"",null,null,null,0.83,null,0]
[null,1,"Ruban adhésif (rouleau diachylon)",null,null,null,1.78,null,0]
[null,1,"Sac de déchets médicaux",null,null,null,0.18,null,0]
[null,25,"Tampons désinfectants",null,null,null,0.08,null,0]
[null,"Articles intéressants à ajouter dans la trousse"]
[null,1,"Comprimés de glucose (4 gr) (10 pastilles)",null,null,null,3.75,null,{"$f":"SUM(G59*H59)","v":0}]
[null,1,"Glace chimique instant (contre les enflures)",null,null,null,1.49,null,{"$f":"SUM(G60*H60)","v":0}]
[null,null,null,null,null,"Sous-total",null,null,{"$f":"SUM(I3:I60)","v":0}]
[null,null,null,null,null,"TPS 5%",null,null,{"$f":"SUM(I61*5%)","v":0}]
[null,null,null,null,null,"TVQ 9,5%",null,null,{"$f":"SUM(I61+I62)*9.5%","v":0}]
[null,null,null,null,null,"Total",null,null,{"$f":"SUM(I61:I63)","v":0}]
[null,null,"Au coût direct",null,null,null,null,null,{"$f":"SUM(I61*6.9368%)+I61","v":0}]
[]
[null,null,"UBR","CBS","F","COMPTE","UNITÉ ADM."]
[]
[null,null,"No de requérant (7chiffres)",null,null,"Nom du requérant"]
[]
[]
["Adresse de retour du matériel:"]
[]
["Pavillon",null,null,null,null,"Local"]
[]
["Nom",null,null,null,null,"Poste"]
[]
["Merci de compléter et expédier ce formulaire numérisé par courriel à : Premierssoins@USherbrooke.ca"]